Workbook

Sheet HOME
D1: 3 MINUTE RENTAL PROPERTY ANALYZER
A4: Property Name
A6: Property Address
A10: Listed Price | D10: Annual Mortgage
A12: 25% Down | D12: Points Charged
A14: Mortgage Amount | D14: Points in Dollars
A16: Number of Units | D16: Closing Costs
A18: Cost Per Unit | D18: Down Payment
A20: Monthly Rental Income | D20: Rehab Allowance
A22: Income Per Unit | D22: Cash in Deal
A24: Other Income | D24: Cash On-Cash
A26: Gross Rent Multiplier | D26: Actual CAP Rate
A28: Gross Income | D28: Market CAP Rate
A30: Vacancy | D30: Annual NOI
A32: EGI | D32: Monthly NOI
A34: Net Operating Income | D34: Mo. Cash Flow
A36: Yrly Expenses 50% Rule | D36: Annual Cash Flow
A38: Mo Expenses 50% Rule | D38: Property Value
A40: Monthly Mortgage | D40: Sales Price Minus Value
A42: Return on Investment | D42: Debt Coverage

Sheet QUICK CHECK
A1: THIS FORM CAN ALSO BE USED INSTEAD OF THE POP-UP. JUST FILL-IN THE DATA IN THE YELLOW CELLS
A3: 3 MINUTE RENTAL PROPERTY ANALYZER
B4: Listed Price | C4: 25% Down | D4: Mortgage Amount | E4: Number of Units | F4: Cost Per Unit | G4: Mo Rental Income | H4: Income Per Unit | I4: Other Income | J4: Gross Rent Multiplier | K4: Gross Income | L4: Vacancy | M4: EGI | N4: Net Operating Income | O4: Yrly Expenses 50% Rule | P4: Mo Expenses 50% Rule | Q4: Monthly Mortgage | R4: Return on
A5: Property Name and Address | R5: Investment
A6: SAMPLE PROPERTY | B6: 350000 | C6: =B6*0.25 -> 87500 | D6: =B6-C6 -> 262500 | E6: 20 | F6: =B6/E6 -> 17500 | G6: 7035 | H6: =G6/E6 -> 351.75 | I6: 0 | J6: =B6/K6 -> 4.145936982 | K6: =(G6+I6)*12 -> 84420 | L6: 0.05 | M6: =K6-(K6*L6) -> 80199 | N6: =M6-P6 -> 76681.5 | O6: =K6/2 -> 42210 | P6: =O6/12 -> 3517.5 | Q6: 1605 | R6: =SUM(+C6+G10)/P10 -> 0.3619468794
A7: 123 Main St
A8: Anytown, CA 12345 | B8: Annual | C8: Points | D8: Points | E8: Closing | F8: Down | G8: Rehab | H8: Cash in | I8: Cash | J8: Actual | K8: Market | L8: Annual | M8: Monthly | N8: Mo. Cash | O8: Annual | P8: Property | Q8: Sales Price | R8: Debt
B9: Mortgage | C9: Charged | D9: in Dollars | E9: Costs | F9: Payment | G9: Allowance | H9: Deal | I9: On-Cash | J9: CAP Rate | K9: CAP Rate | L9: NOI | M9: NOI | N9: Flow | O9: Cash Flow | P9: Value | Q9: Minus Value | R9: Coverage
B10: =Q6*12 -> 19260 | C10: 0.015 | D10: =D6*C10 -> 3937.5 | E10: 5000 | F10: =C6 -> 87500 | G10: 50000 | H10: =D10+F10+G10 -> 141437.5 | I10: =O10/H10 -> 0.1622624834 | J10: =N6/B6 -> 0.21909 | K10: 0.1 | L10: =+M6-O6 -> 37989 | M10: =L10/12 -> 3165.75 | N10: =(G6*0.5)-Q6 -> 1912.5 | O10: =N10*12 -> 22950 | P10: =L10*10 -> 379890 | Q10: =P10-B6 -> 29890 | R10: =L10/B10 -> 1.972429907
A15: Fill-In cells
A16: *Mortgage Calulator http://bit.ly/1TYrKOZ
A18: * This is a link to a mortgage calculator you can use to calculate payment amounts.

Sheet COMPARISON
A1: QUICK PROPERTY COMPARISONS | B1: Listed | C1: 0.25 | D1: # of | E1: Price | F1: Monthly | G1: Income | I1: Annual | J1: 0.5 | K1: Net | L1: Mortgage | M1: Mortgage | N1: Down | O1: Cash | P1: Cap | Q1: Market | R1: Annual | S1: Monthly | T1: Mo. Cash | U1: Flow | V1: Annual | Y1: Debt
A2: Name | B2: Price | C2: Down | D2: Units | E2: Per Door | F2: Income | G2: Per Unit | H2: GRM | I2: Income | J2: Expenses | K2: Op Income | L2: Amount | M2: Payment | N2: Payment | O2: On-Cash | P2: Rate | Q2: CAP Rate | R2: NOI | S2: NOI | T2: Flow | U2: Per Unit | V2: Cash Flow | W2: Value | X2: DIFF | Y2: Coverage
A3: sample property | B3: 141000 | C3: =IF(SUM(B3*0.25)=0,"",SUM(B3*0.25)) -> 35250 | D3: 2 | E3: =IFERROR(B3/D3,"") -> 70500 | F3: 2200 | G3: =IFERROR(F3/D3,"") -> 1100 | H3: =IFERROR(B3/I3,"") -> 5.340909091 | I3: =IF(F3*12=0,"",F3*12) -> 26400 | J3: =IFERROR(IF(I3*0.5=0,"",I3*0.5),"") -> 13200 | K3: =IFERROR(IF(I3-J3=0,"",I3-J3),"") -> 13200 | L3: =IFERROR(IF(B3-C3=0,"",B3-C3),"") -> 105750 | M3: 498 | N3: =C3 -> 35250 | O3: =IFERROR(V3/N3,"") -> 0.2049361702 | P3: =IFERROR(K3/B3, "") -> 0.09361702128 | Q3: 0.1 | R3: =IFERROR(IF(I3-J3=0,"",I3-J3),"") -> 13200 | S3: =IFERROR(R3/12,"") -> 1100 | T3: =IFERROR(IF(S3-M3=0,"",S3-M3),"") -> 602 | U3: =IFERROR(T3/D3,"") -> 301 | V3: =IFERROR(IF(T3*12=0,"",T3*12),"") -> 7224 | W3: =IFERROR(K3*10,"") -> 132000 | X3: =IFERROR(W3-B3,"") -> -9000 | Y3: =IFERROR(T3/M3,"") -> 1.208835341
C7: =IF(SUM(B7*0.25)=0,"",SUM(B7*0.25)) ->  | H7: =IFERROR(B7/I7,"") ->  | I7: =IF(F7*12=0,"",F7*12) ->  | J7: =IFERROR(IF(I7*0.5=0,"",I7*0.5),"") ->  | K7: =IFERROR(IF(I7-J7=0,"",I7-J7),"") ->  | L7: =IFERROR(IF(B7-C7=0,"",B7-C7),"") ->  | O7: =IFERROR(V7/N7,"") ->  | P7: =IFERROR(K7/B7, "") ->  | R7: =IFERROR(IF(I7-J7=0,"",I7-J7),"") ->  | S7: =IFERROR(R7/12,"") ->  | T7: =IFERROR(IF(S7-M7=0,"",S7-M7),"") ->  | U7: =IFERROR(T7/D7,"") ->  | V7: =IFERROR(IF(T7*12=0,"",T7*12),"") ->  | W7: =IFERROR(K7*10,"") ->  | X7: =IFERROR(W7-B7,"") ->  | Y7: =IFERROR(T7/M7,"") -> 
H8: =IFERROR(B8/I8,"") -> 
E9: =IFERROR(B9/D9,"") ->  | G9: =IFERROR(F9/D9,"") -> 
G16: =IFERROR(F16/D16,"") ->  | H16: =IFERROR(B16/I16,"") ->  | I16: =IF(F16*12=0,"",F16*12) ->  | K16: =IFERROR(IF(I16-J16=0,"",I16-J16),"") ->  | L16: =IFERROR(IF(B16-C16=0,"",B16-C16),"") ->  | N16: =C16 ->  | O16: =IFERROR(V16/N16,"") ->  | P16: =IFERROR(K16/B16, "") ->  | R16: =IFERROR(IF(I16-J16=0,"",I16-J16),"") ->  | T16: =IFERROR(IF(S16-M16=0,"",S16-M16),"") ->  | U16: =IFERROR(T16/D16,"") ->  | V16: =IFERROR(IF(T16*12=0,"",T16*12),"") ->  | W16: =IFERROR(K16*10,"") ->  | X16: =IFERROR(W16-B16,"") ->  | Y16: =IFERROR(T16/M16,"") -> 
E17: =IFERROR(B17/D17,"") -> 
E80: =IFERROR(B80/D80,"") ->  | G80: =IFERROR(F80/D80,"") ->  | H80: =IFERROR(B80/I80,"") ->  | I80: =IF(F80*12=0,"",F80*12) ->  | K80: =IFERROR(IF(I80-J80=0,"",I80-J80),"") ->  | L80: =IFERROR(IF(B80-C80=0,"",B80-C80),"") ->  | N80: =C80 ->  | O80: =IFERROR(V80/N80,"") ->  | P80: =IFERROR(K80/B80, "") ->  | R80: =IFERROR(IF(I80-J80=0,"",I80-J80),"") ->  | T80: =IFERROR(IF(S80-M80=0,"",S80-M80),"") ->  | U80: =IFERROR(T80/D80,"") ->  | V80: =IFERROR(IF(T80*12=0,"",T80*12),"") ->  | W80: =IFERROR(K80*10,"") ->  | X80: =IFERROR(W80-B80,"") ->  | Y80: =IFERROR(T80/M80,"") -> 

Sheet Sheet3
